[Event "Titled Tuesday Blitz February 14 Early 2023"]
[White "Grigorjev, Iljya"]
[Black "Sarana, Alexey"]
[WhiteFideId "24159565"]
[BlackFideId "24133795"]
[WhiteElo "2426"]
[BlackElo "2685"]
[Result "1-0"]
[Round "04"]
[TimeControl "180+2"]
[Date "2023.02.15"]
[WhiteClock "0:00:09"]
[BlackClock "0:00:01"]

1. c4 {[%clk 0:03:00]}  e5 {[%clk 0:02:55]} 2. Nc3 {[%clk 0:03:00]}  Nf6 {[%clk 0:02:56]} 3. Nf3 {[%clk 0:03:00]}  Nc6 {[%clk 0:02:56]} 4. e4 {[%clk 0:03:01]}  g6 {[%clk 0:02:49]} 5. d4 {[%clk 0:02:58]}  exd4 {[%clk 0:02:50]} 6. Nxd4 {[%clk 0:02:58]}  Bg7 {[%clk 0:02:50]} 7. Be3 {[%clk 0:02:51]}  Ng4 {[%clk 0:02:47]} 8. Qxg4 {[%clk 0:02:49]}  Nxd4 {[%clk 0:02:46]} 9. Qd1 {[%clk 0:02:49]}  c5 {[%clk 0:02:45]} 10. Bd3 {[%clk 0:02:45]}  O-O {[%clk 0:02:45]} 11. O-O {[%clk 0:02:45]}  d6 {[%clk 0:02:44]} 12. Nd5 {[%clk 0:02:42]}  Be6 {[%clk 0:02:43]} 13. Rc1 {[%clk 0:02:38]}  Bxd5 {[%clk 0:02:40]} 14. exd5 {[%clk 0:02:37]}  Qh4 {[%clk 0:02:39]} 15. Re1 {[%clk 0:02:29]}  Rae8 {[%clk 0:02:29]} 16. g3 {[%clk 0:02:28]}  Qh3 {[%clk 0:02:27]} 17. Bf1 {[%clk 0:02:20]}  Qf5 {[%clk 0:02:26]} 18. Bg2 {[%clk 0:02:15]}  h5 {[%clk 0:02:26]} 19. Bf4 {[%clk 0:02:14]}  Qd7 {[%clk 0:01:39]} 20. Qd3 {[%clk 0:02:11]}  b6 {[%clk 0:01:36]} 21. h4 {[%clk 0:02:09]}  Kh7 {[%clk 0:01:32]} 22. b3 {[%clk 0:02:08]}  Be5 {[%clk 0:01:32]} 23. Bg5 {[%clk 0:02:01]}  Qg4 {[%clk 0:01:06]} 24. Re4 {[%clk 0:01:55]}  Qf5 {[%clk 0:00:58]} 25. Rce1 {[%clk 0:01:53]}  Bg7 {[%clk 0:00:59]} 26. Qd1 {[%clk 0:01:43]}  Re5 {[%clk 0:00:48]} 27. Be7 {[%clk 0:01:36]}  Re8 {[%clk 0:00:47]} 28. Rxe5 {[%clk 0:01:31]}  dxe5 {[%clk 0:00:46]} 29. d6 {[%clk 0:01:31]}  Qd7 {[%clk 0:00:41]} 30. Bd5 {[%clk 0:01:27]}  f5 {[%clk 0:00:36]} 31. Bf7 {[%clk 0:01:17]}  Rxe7 {[%clk 0:00:33]} 32. dxe7 {[%clk 0:01:18]}  Qxe7 {[%clk 0:00:34]} 33. Bd5 {[%clk 0:01:18]}  e4 {[%clk 0:00:34]} 34. Kg2 {[%clk 0:01:16]}  Be5 {[%clk 0:00:33]} 35. Bxe4 {[%clk 0:01:07]}  fxe4 {[%clk 0:00:32]} 36. Rxe4 {[%clk 0:01:08]}  Qb7 {[%clk 0:00:27]} 37. Qd3 {[%clk 0:01:05]}  Bf6 {[%clk 0:00:23]} 38. Kg1 {[%clk 0:01:01]}  Qd7 {[%clk 0:00:22]} 39. Qe3 {[%clk 0:00:59]}  Qf5 {[%clk 0:00:16]} 40. Re8 {[%clk 0:00:53]}  Qd7 {[%clk 0:00:08]} 41. Qe4 {[%clk 0:00:51]}  Kg7 {[%clk 0:00:08]} 42. Rb8 {[%clk 0:00:49]}  Nc6 {[%clk 0:00:05]} 43. Ra8 {[%clk 0:00:43]}  Bd4 {[%clk 0:00:03]} 44. Re8 {[%clk 0:00:41]}  Qd6 {[%clk 0:00:02]} 45. Kg2 {[%clk 0:00:34]}  Qd7 {[%clk 0:00:03]} 46. Re6 {[%clk 0:00:33]}  Ne5 {[%clk 0:00:02]} 47. Rxe5 {[%clk 0:00:33]}  Bxe5 {[%clk 0:00:03]} 48. Qxe5+ {[%clk 0:00:34]}  Kh7 {[%clk 0:00:03]} 49. Qd5 {[%clk 0:00:34]}  Qe7 {[%clk 0:00:04]} 50. a4 {[%clk 0:00:31]}  Kg7 {[%clk 0:00:02]} 51. Qc6 {[%clk 0:00:29]}  Kh7 {[%clk 0:00:03]} 52. Qd5 {[%clk 0:00:25]}  Kg7 {[%clk 0:00:03]} 53. Kf3 {[%clk 0:00:26]}  Kh7 {[%clk 0:00:03]} 54. Qe4 {[%clk 0:00:24]}  Qf6+ {[%clk 0:00:03]} 55. Qf4 {[%clk 0:00:24]}  Qc3+ {[%clk 0:00:04]} 56. Qe3 {[%clk 0:00:24]}  Qf6+ {[%clk 0:00:04]} 57. Kg2 {[%clk 0:00:25]}  Qc6+ {[%clk 0:00:04]} 58. f3 {[%clk 0:00:23]}  Qd7 {[%clk 0:00:05]} 59. Qe4 {[%clk 0:00:18]}  Qd2+ {[%clk 0:00:04]} 60. Kh3 {[%clk 0:00:18]}  Qd7+ {[%clk 0:00:05]} 61. g4 {[%clk 0:00:19]}  hxg4+ {[%clk 0:00:05]} 62. Qxg4 {[%clk 0:00:19]}  Qf7 {[%clk 0:00:05]} 63. Qe4 {[%clk 0:00:19]}  Qd7+ {[%clk 0:00:05]} 64. Kg3 {[%clk 0:00:19]}  Qd6+ {[%clk 0:00:06]} 65. Qf4 {[%clk 0:00:18]}  Qe7 {[%clk 0:00:06]} 66. Qe4 {[%clk 0:00:14]}  Qd6+ {[%clk 0:00:05]} 67. Kg4 {[%clk 0:00:15]}  Qd7+ {[%clk 0:00:05]} 68. Kg5 {[%clk 0:00:14]}  Qd2+ {[%clk 0:00:05]} 69. Kf6 {[%clk 0:00:13]}  Qc3+ {[%clk 0:00:05]} 70. Kf7 {[%clk 0:00:12]}  Qg7+ {[%clk 0:00:06]} 71. Ke6 {[%clk 0:00:12]}  Qc3 {[%clk 0:00:05]} 72. h5 {[%clk 0:00:12]}  Qxb3 {[%clk 0:00:05]} 73. Kf7 {[%clk 0:00:09]}  Qxa4 {[%clk 0:00:01]} 74. Qxg6+ {[%clk 0:00:09]} 1-0


[Site "https://www.chess.com"]

[Event "Titled Tuesday Blitz February 14 Early 2023"]
[White "Madaminov, Mukhiddin"]
[Black "Narayanan.S.L"]
[WhiteFideId "14210703"]
[BlackFideId "5058422"]
[WhiteElo "2422"]
[BlackElo "2660"]
[Result "1-0"]
[Round "04"]
[TimeControl "180+2"]
[Date "2023.02.15"]
[WhiteClock "0:01:39"]
[BlackClock "0:01:18"]

1. d4 {[%clk 0:03:00]}  d5 {[%clk 0:02:59]} 2. Nc3 {[%clk 0:03:01]}  c6 {[%clk 0:02:58]} 3. Bf4 {[%clk 0:03:01]}  Bf5 {[%clk 0:02:55]} 4. f3 {[%clk 0:03:00]}  e6 {[%clk 0:02:55]} 5. g4 {[%clk 0:02:55]}  Bg6 {[%clk 0:02:54]} 6. h4 {[%clk 0:02:55]}  h5 {[%clk 0:02:55]} 7. g5 {[%clk 0:02:54]}  Bd6 {[%clk 0:02:53]} 8. Nh3 {[%clk 0:02:54]}  Ne7 {[%clk 0:02:53]} 9. Qd2 {[%clk 0:02:53]}  Bf5 {[%clk 0:02:50]} 10. O-O-O {[%clk 0:02:37]}  Bxh3 {[%clk 0:02:48]} 11. Bxh3 {[%clk 0:02:38]}  Bxf4 {[%clk 0:02:48]} 12. Qxf4 {[%clk 0:02:38]}  Ng6 {[%clk 0:02:48]} 13. Qg3 {[%clk 0:02:35]}  Na6 {[%clk 0:02:42]} 14. e4 {[%clk 0:02:23]}  Qc7 {[%clk 0:02:42]} 15. e5 {[%clk 0:02:22]}  Ne7 {[%clk 0:02:41]} 16. g6 {[%clk 0:02:17]}  Nxg6 {[%clk 0:02:39]} 17. Bxe6 {[%clk 0:02:18]}  fxe6 {[%clk 0:02:38]} 18. Qxg6+ {[%clk 0:02:17]}  Qf7 {[%clk 0:02:38]} 19. Rdg1 {[%clk 0:02:07]}  O-O {[%clk 0:02:32]} 20. Ne2 {[%clk 0:01:56]}  c5 {[%clk 0:02:20]} 21. Qh6 {[%clk 0:01:52]}  cxd4 {[%clk 0:02:18]} 22. Rg5 {[%clk 0:01:49]}  d3 {[%clk 0:01:18]} 23. Rhg1 {[%clk 0:01:39]} 1-0


[Site "https://www.chess.com"]

[Event "Titled Tuesday Blitz February 14 Early 2023"]
[White "Pichot, Alan"]
[Black "Bok, Benjamin"]
[WhiteFideId "110973"]
[BlackFideId "1017063"]
[WhiteElo "2638"]
[BlackElo "2607"]
[Result "0-1"]
[Round "04"]
[TimeControl "180+2"]
[Date "2023.02.15"]
[WhiteClock "0:00:09"]
[BlackClock "0:00:18"]

1. e4 {[%clk 0:03:00]}  e5 {[%clk 0:02:59]} 2. Nf3 {[%clk 0:02:59]}  Nc6 {[%clk 0:03:00]} 3. Bc4 {[%clk 0:02:56]}  Bc5 {[%clk 0:03:00]} 4. c3 {[%clk 0:02:54]}  Nf6 {[%clk 0:03:00]} 5. d4 {[%clk 0:02:53]}  exd4 {[%clk 0:03:01]} 6. b4 {[%clk 0:02:53]}  Bb6 {[%clk 0:02:52]} 7. e5 {[%clk 0:02:53]}  d5 {[%clk 0:02:52]} 8. exf6 {[%clk 0:02:52]}  dxc4 {[%clk 0:02:52]} 9. Qe2+ {[%clk 0:02:50]}  Be6 {[%clk 0:02:48]} 10. b5 {[%clk 0:02:49]}  Na5 {[%clk 0:02:22]} 11. fxg7 {[%clk 0:02:38]}  Rg8 {[%clk 0:02:22]} 12. Bg5 {[%clk 0:02:39]}  Qd5 {[%clk 0:02:07]} 13. Nbd2 {[%clk 0:02:15]}  d3 {[%clk 0:01:44]} 14. Ne4 {[%clk 0:01:24]}  Qxg5 {[%clk 0:01:38]} 15. Nfxg5 {[%clk 0:01:23]}  dxe2 {[%clk 0:01:38]} 16. Nf6+ {[%clk 0:01:24]}  Ke7 {[%clk 0:01:38]} 17. Nxg8+ {[%clk 0:01:24]}  Rxg8 {[%clk 0:01:39]} 18. Nxe6 {[%clk 0:01:19]}  fxe6 {[%clk 0:01:34]} 19. Kxe2 {[%clk 0:01:19]}  Rxg7 {[%clk 0:01:35]} 20. g3 {[%clk 0:01:20]}  Rg5 {[%clk 0:01:33]} 21. Rab1 {[%clk 0:01:17]}  Re5+ {[%clk 0:01:32]} 22. Kf1 {[%clk 0:01:18]}  c6 {[%clk 0:01:23]} 23. bxc6 {[%clk 0:01:14]}  Nxc6 {[%clk 0:01:24]} 24. Rb2 {[%clk 0:01:14]}  Rd5 {[%clk 0:01:15]} 25. Kg2 {[%clk 0:01:12]}  Ne5 {[%clk 0:01:14]} 26. Re2 {[%clk 0:01:05]}  Nd3 {[%clk 0:01:13]} 27. f4 {[%clk 0:01:03]}  Ra5 {[%clk 0:01:07]} 28. h4 {[%clk 0:01:02]}  Ra3 {[%clk 0:01:05]} 29. f5 {[%clk 0:00:55]}  e5 {[%clk 0:01:05]} 30. Rf1 {[%clk 0:00:53]}  Rxc3 {[%clk 0:00:52]} 31. g4 {[%clk 0:00:47]}  Kf7 {[%clk 0:00:44]} 32. Rd2 {[%clk 0:00:20]}  Nf4+ {[%clk 0:00:41]} 33. Kh1 {[%clk 0:00:20]}  Rh3+ {[%clk 0:00:35]} 34. Rh2 {[%clk 0:00:21]}  Rxh2+ {[%clk 0:00:34]} 35. Kxh2 {[%clk 0:00:21]}  c3 {[%clk 0:00:34]} 36. Rc1 {[%clk 0:00:21]}  Bd4 {[%clk 0:00:28]} 37. g5 {[%clk 0:00:21]}  Nd3 {[%clk 0:00:22]} 38. Rc2 {[%clk 0:00:22]}  Nb4 {[%clk 0:00:22]} 39. Rc1 {[%clk 0:00:22]}  Nxa2 {[%clk 0:00:18]} 40. Rc2 {[%clk 0:00:08]}  Nb4 {[%clk 0:00:18]} 41. Rc1 {[%clk 0:00:09]}  c2 {[%clk 0:00:18]} 42. h5 {[%clk 0:00:09]}  Be3 {[%clk 0:00:18]} 43. g6+ {[%clk 0:00:09]}  hxg6 {[%clk 0:00:18]} 44. fxg6+ {[%clk 0:00:09]}  Kg7 {[%clk 0:00:18]} 0-1


[Site "https://www.chess.com"]

[Event "Titled Tuesday Blitz February 14 Early 2023"]
[White "Sanal, Vahap"]
[Black "Kilic, Eray"]
[WhiteFideId "6300545"]
[BlackFideId "44517173"]
[WhiteElo "2600"]
[BlackElo "2414"]
[Result "1-0"]
[Round "04"]
[TimeControl "180+2"]
[Date "2023.02.15"]
[WhiteClock "0:00:05"]
[BlackClock "0:00:02"]

1. Nf3 {[%clk 0:03:00]}  Nf6 {[%clk 0:03:00]} 2. g3 {[%clk 0:03:01]}  g6 {[%clk 0:03:00]} 3. Bg2 {[%clk 0:03:01]}  Bg7 {[%clk 0:03:01]} 4. d4 {[%clk 0:02:59]}  O-O {[%clk 0:03:01]} 5. O-O {[%clk 0:02:59]}  d5 {[%clk 0:02:59]} 6. c3 {[%clk 0:02:57]}  Nbd7 {[%clk 0:02:58]} 7. a4 {[%clk 0:02:55]}  c5 {[%clk 0:02:56]} 8. a5 {[%clk 0:02:55]}  cxd4 {[%clk 0:02:52]} 9. cxd4 {[%clk 0:02:55]}  Ne4 {[%clk 0:02:51]} 10. Nc3 {[%clk 0:02:55]}  Ndf6 {[%clk 0:02:51]} 11. Ne5 {[%clk 0:02:53]}  Nxc3 {[%clk 0:02:23]} 12. bxc3 {[%clk 0:02:54]}  Ne4 {[%clk 0:02:19]} 13. Qb3 {[%clk 0:02:53]}  e6 {[%clk 0:02:15]} 14. c4 {[%clk 0:02:43]}  Nc5 {[%clk 0:01:58]} 15. Qb5 {[%clk 0:02:33]}  Nd7 {[%clk 0:01:53]} 16. Ba3 {[%clk 0:02:29]}  Re8 {[%clk 0:01:50]} 17. cxd5 {[%clk 0:02:27]}  Nxe5 {[%clk 0:01:47]} 18. dxe5 {[%clk 0:02:27]}  exd5 {[%clk 0:01:35]} 19. f4 {[%clk 0:02:10]}  Be6 {[%clk 0:01:35]} 20. Rfd1 {[%clk 0:02:03]}  a6 {[%clk 0:01:35]} 21. Qxb7 {[%clk 0:01:50]}  Qxa5 {[%clk 0:01:35]} 22. Bd6 {[%clk 0:01:25]}  Qc3 {[%clk 0:01:23]} 23. Qb6 {[%clk 0:01:19]}  Qc4 {[%clk 0:00:56]} 24. Bf3 {[%clk 0:01:15]}  Rec8 {[%clk 0:00:46]} 25. Qd4 {[%clk 0:01:13]}  Qxd4+ {[%clk 0:00:31]} 26. Rxd4 {[%clk 0:01:14]}  Rc6 {[%clk 0:00:29]} 27. Bb4 {[%clk 0:00:56]}  Rd8 {[%clk 0:00:27]} 28. e4 {[%clk 0:00:50]}  Rc4 {[%clk 0:00:16]} 29. Rad1 {[%clk 0:00:50]}  Rb8 {[%clk 0:00:11]} 30. exd5 {[%clk 0:00:43]}  Rcxb4 {[%clk 0:00:11]} 31. dxe6 {[%clk 0:00:37]}  fxe6 {[%clk 0:00:10]} 32. Rxb4 {[%clk 0:00:36]}  Rxb4 {[%clk 0:00:11]} 33. Rd6 {[%clk 0:00:32]}  g5 {[%clk 0:00:11]} 34. fxg5 {[%clk 0:00:25]}  Bxe5 {[%clk 0:00:10]} 35. Rxa6 {[%clk 0:00:22]}  Bd4+ {[%clk 0:00:10]} 36. Kg2 {[%clk 0:00:22]}  Rb2+ {[%clk 0:00:11]} 37. Kh3 {[%clk 0:00:19]}  Kf7 {[%clk 0:00:11]} 38. Ra4 {[%clk 0:00:10]}  Bg1 {[%clk 0:00:11]} 39. Bg2 {[%clk 0:00:09]}  Kg6 {[%clk 0:00:09]} 40. Re4 {[%clk 0:00:10]}  Rb6 {[%clk 0:00:08]} 41. Re1 {[%clk 0:00:07]}  Bf2 {[%clk 0:00:08]} 42. Re2 {[%clk 0:00:07]}  Bd4 {[%clk 0:00:09]} 43. Kg4 {[%clk 0:00:07]}  Bc3 {[%clk 0:00:05]} 44. h4 {[%clk 0:00:07]}  Rb4+ {[%clk 0:00:06]} 45. Be4+ {[%clk 0:00:08]}  Kg7 {[%clk 0:00:06]} 46. Kh3 {[%clk 0:00:08]}  e5 {[%clk 0:00:06]} 47. Rc2 {[%clk 0:00:07]}  Rb3 {[%clk 0:00:06]} 48. Kg4 {[%clk 0:00:07]}  Be1 {[%clk 0:00:06]} 49. Rc7+ {[%clk 0:00:08]}  Kf8 {[%clk 0:00:06]} 50. Rxh7 {[%clk 0:00:08]}  Rxg3+ {[%clk 0:00:06]} 51. Kf5 {[%clk 0:00:09]}  Bc3 {[%clk 0:00:04]} 52. h5 {[%clk 0:00:08]}  Bd2 {[%clk 0:00:03]} 53. g6 {[%clk 0:00:08]}  Kg8 {[%clk 0:00:03]} 54. h6 {[%clk 0:00:06]}  Rg5+ {[%clk 0:00:02]} 55. Kf6 {[%clk 0:00:07]}  Rg1 {[%clk 0:00:02]} 56. Rg7+ {[%clk 0:00:07]}  Kh8 {[%clk 0:00:02]} 57. Rd7 {[%clk 0:00:05]} 1-0


[Site "https://www.chess.com"]

[Event "Titled Tuesday Blitz February 14 Early 2023"]
[White "Postny, Evgeny"]
[Black "Dardha, Daniel"]
[WhiteFideId "2804344"]
[BlackFideId "240990"]
[WhiteElo "2549"]
[BlackElo "2631"]
[Result "0-1"]
[Round "04"]
[TimeControl "180+2"]
[Date "2023.02.15"]
[WhiteClock "0:00:04"]
[BlackClock "0:00:51"]

1. Nf3 {[%clk 0:03:00]}  d5 {[%clk 0:02:58]} 2. c4 {[%clk 0:03:01]}  d4 {[%clk 0:02:56]} 3. g3 {[%clk 0:03:01]}  Nc6 {[%clk 0:02:52]} 4. Bg2 {[%clk 0:03:01]}  e5 {[%clk 0:02:53]} 5. d3 {[%clk 0:03:02]}  Bc5 {[%clk 0:02:53]} 6. O-O {[%clk 0:03:02]}  Nge7 {[%clk 0:02:53]} 7. Na3 {[%clk 0:02:55]}  a5 {[%clk 0:02:47]} 8. Nc2 {[%clk 0:02:48]}  O-O {[%clk 0:02:47]} 9. b3 {[%clk 0:02:48]}  Bg4 {[%clk 0:02:36]} 10. a3 {[%clk 0:02:47]}  Qd7 {[%clk 0:02:35]} 11. Rb1 {[%clk 0:02:46]}  Ng6 {[%clk 0:02:25]} 12. b4 {[%clk 0:02:42]}  Be7 {[%clk 0:02:25]} 13. b5 {[%clk 0:02:35]}  Nd8 {[%clk 0:02:23]} 14. Re1 {[%clk 0:02:27]}  Bh3 {[%clk 0:02:18]} 15. Bh1 {[%clk 0:02:25]}  Ne6 {[%clk 0:02:18]} 16. Nd2 {[%clk 0:02:07]}  Rab8 {[%clk 0:02:01]} 17. a4 {[%clk 0:01:39]}  f5 {[%clk 0:01:58]} 18. Nb3 {[%clk 0:01:29]}  b6 {[%clk 0:01:46]} 19. Bc6 {[%clk 0:01:27]}  Qc8 {[%clk 0:01:46]} 20. e3 {[%clk 0:01:17]}  dxe3 {[%clk 0:01:41]} 21. Nxe3 {[%clk 0:01:08]}  Bb4 {[%clk 0:01:28]} 22. Bd2 {[%clk 0:00:57]}  Ng5 {[%clk 0:01:22]} 23. Bxb4 {[%clk 0:00:51]}  axb4 {[%clk 0:01:21]} 24. Qh5 {[%clk 0:00:51]}  Qd8 {[%clk 0:01:15]} 25. Bg2 {[%clk 0:00:11]}  Bxg2 {[%clk 0:01:08]} 26. Nxg2 {[%clk 0:00:11]}  f4 {[%clk 0:01:06]} 27. gxf4 {[%clk 0:00:11]}  Nxf4 {[%clk 0:00:54]} 28. Nxf4 {[%clk 0:00:11]}  Rxf4 {[%clk 0:00:54]} 29. Re3 {[%clk 0:00:10]}  Qf6 {[%clk 0:00:55]} 30. Rf1 {[%clk 0:00:06]}  Rf8 {[%clk 0:00:54]} 31. Rg3 {[%clk 0:00:05]}  Rxf2 {[%clk 0:00:51]} 32. Qd1 {[%clk 0:00:04]}  Rxf1+ {[%clk 0:00:51]} 33. Qxf1 {[%clk 0:00:04]}  Qxf1# {[%clk 0:00:51]} 0-1


[Site "https://www.chess.com"]

[Event "Titled Tuesday Blitz February 14 Early 2023"]
[White "Bharath Subramaniyam H"]
[Black "Murzin, Volodar"]
[WhiteFideId "46634827"]
[BlackFideId "44155573"]
[WhiteElo "2517"]
[BlackElo "2604"]
[Result "1/2-1/2"]
[Round "04"]
[TimeControl "180+2"]
[Date "2023.02.15"]
[WhiteClock "0:00:23"]
[BlackClock "0:01:04"]

1. e4 {[%clk 0:03:00]}  c6 {[%clk 0:02:57]} 2. Nf3 {[%clk 0:02:59]}  d5 {[%clk 0:02:58]} 3. Nc3 {[%clk 0:02:59]}  Bg4 {[%clk 0:02:55]} 4. h3 {[%clk 0:02:59]}  Bxf3 {[%clk 0:02:54]} 5. Qxf3 {[%clk 0:02:59]}  Nf6 {[%clk 0:02:55]} 6. Be2 {[%clk 0:02:56]}  e6 {[%clk 0:02:52]} 7. O-O {[%clk 0:02:55]}  Nbd7 {[%clk 0:02:49]} 8. d4 {[%clk 0:02:53]}  dxe4 {[%clk 0:02:48]} 9. Nxe4 {[%clk 0:02:53]}  Nxe4 {[%clk 0:02:49]} 10. Qxe4 {[%clk 0:02:53]}  Nf6 {[%clk 0:02:50]} 11. Qd3 {[%clk 0:02:49]}  Bd6 {[%clk 0:02:50]} 12. Qb3 {[%clk 0:02:40]}  Qc7 {[%clk 0:02:39]} 13. c4 {[%clk 0:02:35]}  O-O {[%clk 0:02:37]} 14. Bg5 {[%clk 0:02:29]}  h6 {[%clk 0:02:29]} 15. Bxf6 {[%clk 0:02:27]}  gxf6 {[%clk 0:02:30]} 16. d5 {[%clk 0:02:23]}  cxd5 {[%clk 0:02:23]} 17. cxd5 {[%clk 0:02:24]}  Qb6 {[%clk 0:02:22]} 18. dxe6 {[%clk 0:02:14]}  Qxb3 {[%clk 0:02:19]} 19. axb3 {[%clk 0:02:14]}  fxe6 {[%clk 0:02:20]} 20. Bc4 {[%clk 0:02:11]}  Kf7 {[%clk 0:02:18]} 21. Rfe1 {[%clk 0:01:59]}  Rfe8 {[%clk 0:02:18]} 22. g3 {[%clk 0:01:43]}  f5 {[%clk 0:02:11]} 23. f4 {[%clk 0:01:12]}  Kf6 {[%clk 0:02:00]} 24. Kg2 {[%clk 0:01:12]}  a6 {[%clk 0:01:54]} 25. Rad1 {[%clk 0:01:06]}  Rad8 {[%clk 0:01:53]} 26. Re2 {[%clk 0:00:55]}  Bc7 {[%clk 0:01:31]} 27. Rxd8 {[%clk 0:00:53]}  Bxd8 {[%clk 0:01:31]} 28. Bd5 {[%clk 0:00:51]}  Re7 {[%clk 0:01:29]} 29. Bf3 {[%clk 0:00:51]}  Rd7 {[%clk 0:01:26]} 30. Rc2 {[%clk 0:00:47]}  Ba5 {[%clk 0:01:23]} 31. g4 {[%clk 0:00:37]}  Rd2+ {[%clk 0:01:20]} 32. Rxd2 {[%clk 0:00:35]}  Bxd2 {[%clk 0:01:21]} 33. Bxb7 {[%clk 0:00:35]}  a5 {[%clk 0:01:20]} 34. Kf3 {[%clk 0:00:33]}  Bc1 {[%clk 0:01:11]} 35. b4 {[%clk 0:00:19]}  axb4 {[%clk 0:01:10]} 36. b3 {[%clk 0:00:20]}  e5 {[%clk 0:01:04]} 37. fxe5+ {[%clk 0:00:19]}  Kxe5 {[%clk 0:01:05]} 38. gxf5 {[%clk 0:00:19]}  Kxf5 {[%clk 0:01:06]} 39. Bc8+ {[%clk 0:00:20]}  Ke5 {[%clk 0:01:06]} 40. Bg4 {[%clk 0:00:20]}  Kd4 {[%clk 0:01:04]} 41. Bd7 {[%clk 0:00:21]}  Bg5 {[%clk 0:01:04]} 42. Ba4 {[%clk 0:00:22]}  Kc3 {[%clk 0:01:04]} 43. Kg4 {[%clk 0:00:23]}  Bc1 {[%clk 0:01:04]} 44. Kh5 {[%clk 0:00:23]} 1/2-1/2


[Site "https://www.chess.com"]

[Event "Titled Tuesday Blitz February 14 Early 2023"]
[White "Hammer, Jon Ludvig"]
[Black "Seo, Jung Min"]
[WhiteFideId "1503707"]
[BlackFideId "1734687"]
[WhiteElo "2636"]
[BlackElo "2494"]
[Result "1/2-1/2"]
[Round "04"]
[TimeControl "180+2"]
[Date "2023.02.15"]
[WhiteClock "0:00:05"]
[BlackClock "0:00:10"]

1. e4 {[%clk 0:03:00]}  c5 {[%clk 0:02:59]} 2. Nf3 {[%clk 0:03:00]}  Nc6 {[%clk 0:02:59]} 3. Bb5 {[%clk 0:03:00]}  e6 {[%clk 0:02:59]} 4. Bxc6 {[%clk 0:03:00]}  bxc6 {[%clk 0:02:59]} 5. b3 {[%clk 0:02:59]}  Ne7 {[%clk 0:02:58]} 6. d3 {[%clk 0:02:54]}  Ng6 {[%clk 0:02:58]} 7. h4 {[%clk 0:02:53]}  h5 {[%clk 0:02:57]} 8. e5 {[%clk 0:02:47]}  f6 {[%clk 0:02:51]} 9. Qe2 {[%clk 0:02:46]}  fxe5 {[%clk 0:02:48]} 10. Qe4 {[%clk 0:02:23]}  Qf6 {[%clk 0:02:47]} 11. Bb2 {[%clk 0:02:09]}  d5 {[%clk 0:02:43]} 12. Qe3 {[%clk 0:02:00]}  Bd6 {[%clk 0:02:42]} 13. Nbd2 {[%clk 0:01:52]}  Qf4 {[%clk 0:02:38]} 14. O-O-O {[%clk 0:01:25]}  Qxe3 {[%clk 0:02:37]} 15. fxe3 {[%clk 0:01:26]}  O-O {[%clk 0:02:36]} 16. Ba3 {[%clk 0:01:07]}  Be7 {[%clk 0:02:34]} 17. Bb2 {[%clk 0:00:57]}  Bd6 {[%clk 0:02:34]} 18. Rdf1 {[%clk 0:00:48]}  Bd7 {[%clk 0:02:32]} 19. Rf2 {[%clk 0:00:45]}  Rf7 {[%clk 0:02:03]} 20. e4 {[%clk 0:00:44]}  Raf8 {[%clk 0:02:02]} 21. Kd1 {[%clk 0:00:39]}  Rf4 {[%clk 0:01:53]} 22. g3 {[%clk 0:00:26]}  R4f7 {[%clk 0:01:42]} 23. Ke2 {[%clk 0:00:26]}  Rf6 {[%clk 0:01:32]} 24. Rff1 {[%clk 0:00:25]}  Be8 {[%clk 0:01:27]} 25. Ba3 {[%clk 0:00:24]}  Be7 {[%clk 0:01:26]} 26. Bb2 {[%clk 0:00:14]}  Bd6 {[%clk 0:01:26]} 27. Ba3 {[%clk 0:00:14]}  Be7 {[%clk 0:01:26]} 28. Rf2 {[%clk 0:00:12]}  R6f7 {[%clk 0:01:24]} 29. Rhf1 {[%clk 0:00:12]}  Bd7 {[%clk 0:01:18]} 30. Nb1 {[%clk 0:00:12]}  Be8 {[%clk 0:01:09]} 31. Nc3 {[%clk 0:00:11]}  c4 {[%clk 0:01:09]} 32. Bxe7 {[%clk 0:00:10]}  cxd3+ {[%clk 0:01:09]} 33. cxd3 {[%clk 0:00:11]}  Rxe7 {[%clk 0:01:09]} 34. Na4 {[%clk 0:00:09]}  Rf6 {[%clk 0:00:54]} 35. Nc5 {[%clk 0:00:09]}  Bf7 {[%clk 0:00:45]} 36. Ng5 {[%clk 0:00:10]}  Rxf2+ {[%clk 0:00:45]} 37. Rxf2 {[%clk 0:00:10]}  Nf8 {[%clk 0:00:45]} 38. Ke3 {[%clk 0:00:07]}  Be8 {[%clk 0:00:36]} 39. Rc2 {[%clk 0:00:04]}  Kh8 {[%clk 0:00:31]} 40. Ke2 {[%clk 0:00:04]}  Kg8 {[%clk 0:00:31]} 41. b4 {[%clk 0:00:05]}  Kh8 {[%clk 0:00:30]} 42. Rc3 {[%clk 0:00:05]}  Kg8 {[%clk 0:00:30]} 43. Ra3 {[%clk 0:00:06]}  g6 {[%clk 0:00:26]} 44. Ra6 {[%clk 0:00:06]}  Kg7 {[%clk 0:00:27]} 45. Ke3 {[%clk 0:00:04]}  Kf6 {[%clk 0:00:26]} 46. Ke2 {[%clk 0:00:05]}  Kg7 {[%clk 0:00:26]} 47. Kd2 {[%clk 0:00:05]}  Kf6 {[%clk 0:00:24]} 48. Ke3 {[%clk 0:00:05]}  Nh7 {[%clk 0:00:20]} 49. Nxh7+ {[%clk 0:00:03]}  Rxh7 {[%clk 0:00:21]} 50. Ra3 {[%clk 0:00:02]}  Rc7 {[%clk 0:00:16]} 51. Rb3 {[%clk 0:00:02]}  Rc8 {[%clk 0:00:16]} 52. Rb1 {[%clk 0:00:03]}  Kg7 {[%clk 0:00:16]} 53. Nxe6+ {[%clk 0:00:02]}  Kf6 {[%clk 0:00:16]} 54. Nc5 {[%clk 0:00:03]}  d4+ {[%clk 0:00:15]} 55. Kd2 {[%clk 0:00:03]}  Bf7 {[%clk 0:00:15]} 56. a3 {[%clk 0:00:02]}  Ke7 {[%clk 0:00:14]} 57. Rf1 {[%clk 0:00:03]}  Ra8 {[%clk 0:00:13]} 58. Nb7 {[%clk 0:00:03]}  Rb8 {[%clk 0:00:10]} 59. Na5 {[%clk 0:00:03]}  Rb6 {[%clk 0:00:10]} 60. Rc1 {[%clk 0:00:02]}  Kd6 {[%clk 0:00:10]} 61. Rc5 {[%clk 0:00:03]}  Be6 {[%clk 0:00:09]} 62. Ke2 {[%clk 0:00:04]}  Ra6 {[%clk 0:00:09]} 63. Kf3 {[%clk 0:00:04]}  Rb6 {[%clk 0:00:09]} 64. Kf2 {[%clk 0:00:04]}  Ra6 {[%clk 0:00:10]} 65. Kg2 {[%clk 0:00:04]}  Rb6 {[%clk 0:00:09]} 66. Kh2 {[%clk 0:00:04]}  Bf7 {[%clk 0:00:09]} 67. g4 {[%clk 0:00:05]}  hxg4 {[%clk 0:00:09]} 68. Kg3 {[%clk 0:00:05]}  Be6 {[%clk 0:00:10]} 69. Kg2 {[%clk 0:00:02]}  Bf7 {[%clk 0:00:10]} 70. Kf2 {[%clk 0:00:03]}  Bg8 {[%clk 0:00:09]} 71. Kg3 {[%clk 0:00:03]}  Be6 {[%clk 0:00:10]} 72. Kh2 {[%clk 0:00:04]}  Bg8 {[%clk 0:00:09]} 73. Kh1 {[%clk 0:00:04]}  Bf7 {[%clk 0:00:09]} 74. Kg2 {[%clk 0:00:05]}  Bg8 {[%clk 0:00:10]} 75. Kg3 {[%clk 0:00:05]}  Be6 {[%clk 0:00:10]} 1/2-1/2


[Site "https://www.chess.com"]